[Event "German-ch Blitz Women 2022"]
[Site "Magdeburg"]
[Date "2022.08.13"]
[Round "18.5"]
[White "Doll, Rebecca"]
[Black "Muetsch, Annmarie"]
[Result "0-1"]
[ECO "B07"]
[WhiteElo "1933"]
[BlackElo "2249"]
[Annotator "TA"]
[PlyCount "153"]
[EventDate "2022.08.10"]
[EventType "tourn"]
[EventCountry "GER"]
[SourceTitle "playchess.com"]
[Source "ChessBase"]
[SourceQuality "1"]
[TimeControl "180+2"]

{[%evp 9,153,36,36,21,41,15,24,6,12,10,12,-27,-23,-50,0,0,0,-51,-15,-20,0,-22,-17,-83,-84,-79,-84,-108,-78,-124,-36,-43,-37,-82,-63,-195,0,0,-6,0,0,0,10,-11,0,0,0,0,0,-134,0,-139,0,0,102,0,0,0,24,13,40,8,17,0,53,0,0,0,0,-22,-16,-54,-56,-63,-53,-307,-307,-306,-302,-498,-483,-774,-772,-668,-556,-1556,-1464,-6261,-5923,-29987,-29978,-29989,-5393,-29977,-29977,-29984,0,0,5065,33,73,0,0,0,4931,4931,4923,4919,4888,4706,4670,4613,4598,4569,4134,3393,3393,3352,3344,3337,3271,3264,3256,3216,3208,3208,3146,3093,2739,2616,2601,2594,2587,2587,2579,2579,2572,2565,2558,2558,2558,619,397,0,0,0]} 1. e4 {[%emt 0:00:01]} d6 {[%emt 0:00:00]} 2. d4 {[%emt 0:00:01]} Nf6 {[%emt 0:00:01]} 3. Nc3 {[%emt 0:00:02]} e5 {[%emt 0:00:01]} 4. Nge2 {[%emt 0:00:01]} c6 {[%emt 0:00:09]} 5. h3 {[%emt 0:00:03]} b5 {[%emt 0:00:11]} 6. a3 {[%emt 0:00:07] B07: Pirc Defence: Miscellaneous Systems.} Bb7 {[%emt 0:00:11] [#]} 7. dxe5 $146 {[%emt 0:00:29]} ({Predecessor:} 7. g4 Nbd7 8. Bg2 a5 9. Ng3 b4 10. Nce2 h6 11. O-O g6 12. Be3 h5 13. g5 {1-0 (29) Belouadah,S (2340)-Collutiis,D (2441) Baku 2016}) 7... dxe5 {[%emt 0:00:02]} 8. Qxd8+ {[%emt 0:00:02] White has an edge.} Kxd8 {[%emt 0:00:01]} 9. Be3 {[%emt 0:00:06]} Nbd7 {[%emt 0:00:05]} 10. O-O-O {[%emt 0:00:05]} Kc7 {[%emt 0:00:04]} 11. g4 {[%emt 0:00:16]} h6 {[%emt 0:00:20]} (11... Bc5 $15) 12. Ng3 $11 {[%emt 0:00:09]} Bc5 {[%emt 0:00:13]} 13. Nf5 {[%emt 0:00:20]} (13. Be2 $11) 13... Bxe3+ {[%emt 0:00:15]} (13... g6 $5 {[%cal Rg6f5]} 14. Bxc5 Nxc5 $11) 14. Nxe3 {[%emt 0:00:01]} g6 {[%emt 0:00:07]} 15. Bg2 {[%emt 0:00:06]} Nc5 {[%emt 0:00:04][%cal Bd7c5,Bc5e6,Be6f4][%mdl 32]} 16. b4 {[%emt 0:00:28]} (16. f3 $11) 16... Ne6 $17 {[%emt 0:00:02]} 17. Rd2 {[%emt 0:00:05]} a5 {[%emt 0:00:04]} 18. Kb2 {[%emt 0:00:03]} Nf4 {[%emt 0:00:12]} 19. Bf3 {[%emt 0:00:07]} (19. Bf1 $142) 19... Rhd8 {[%emt 0:00:09]} (19... Nd7 $17) 20. Rxd8 $15 {[%emt 0:00:14]} Rxd8 {[%emt 0:00:02]} 21. h4 {[%emt 0:00:08]} Rd2 {[%emt 0:00:09]} 22. Ned1 {[%emt 0:00:03]} (22. g5 $1 $15) 22... Nd7 $2 {[%emt 0:00:11]} (22... Nd3+ $19 23. Kb1 axb4) 23. Kc1 $11 {[%emt 0:00:04]} Rd4 $36 {[%emt 0:00:06][%mdl 2048] Black fights for an advantage.} 24. bxa5 {[%emt 0:00:10]} Nc5 {[%emt 0:00:07]} 25. Ne3 {[%emt 0:00:12]} Na4 {[%emt 0:00:08]} 26. Ne2 {[%emt 0:00:07]} Nxe2+ {[%emt 0:00:06]} 27. Bxe2 {[%emt 0:00:01]} Rxe4 {[%emt 0:00:05]} 28. Bd3 {[%emt 0:00:04]} Rf4 {[%emt 0:00:04]} 29. Rh2 {[%emt 0:00:02]} (29. h5 $11 {remains equal.} g5 30. Nf5) 29... Nc5 {[%emt 0:00:05]} (29... Bc8 $1 $17 30. Bxb5 cxb5 31. Nd5+ Kb7 32. Nxf4 exf4) 30. Be2 {[%emt 0:00:09]} (30. h5 $11 gxh5 31. Rxh5) 30... Ra4 {[%emt 0:00:04] Black is more active.} (30... Bc8 $1 $17 {aiming for ...Be6.} 31. Bxb5 Bxg4 32. Nxg4 Rxg4) 31. h5 {[%emt 0:00:02][%cal Og4g5]} Rxa3 {[%emt 0:00:27]} (31... Rxa5 $11 {keeps the balance.} 32. hxg6 fxg6) 32. hxg6 {[%emt 0:00:02]} (32. g5 $1 $16 {[%cal Rg5h6]} Ra1+ 33. Kb2) 32... fxg6 {[%emt 0:00:01]} 33. Rxh6 {[%emt 0:00:02]} g5 {[%emt 0:00:02]} 34. Rh7+ {[%emt 0:00:08]} Kb8 {[%emt 0:00:01]} 35. Rh8+ {[%emt 0:00:02]} (35. Re7 $5 {[%cal Re7e5]}) 35... Ka7 {[%emt 0:00:02]} 36. Rg8 {[%emt 0:00:01]} Ne4 {[%emt 0:00:01]} (36... Ra1+ $11 37. Kb2 Re1) 37. Nd1 {[%emt 0:00:06]} ({White should try} 37. Kb2 $14 Rxa5 38. Bf3 Nxf2 39. Rxg5) 37... Rxa5 {[%emt 0:00:09]} 38. f3 {[%emt 0:00:01]} Ng3 {[%emt 0:00:06]} 39. Bd3 {[%emt 0:00:01]} (39. Kd2 $5 {[%cal Rg8g5]}) 39... c5 {[%emt 0:00:02][%cal Bc6c5,Bc5c4][%mdl 32] Threatens to win with ...c4.} 40. Rxg5 {[%emt 0:00:03]} c4 {[%emt 0:00:01]} 41. Bh7 {[%emt 0:00:03]} Bxf3 {[%emt 0:00:02] White must now prevent ...Ra1+.} 42. Rxe5 $2 {[%emt 0:00:04][%mdl 8192]} ({Only move:} 42. Ne3 $15) 42... Ra1+ $19 {[%emt 0:00:01]} ({Worse is} 42... Bxg4 43. Ne3 $11) 43. Kb2 {[%emt 0:00:03]} Rxd1 {[%emt 0:00:02]} 44. Re3 $2 {[%emt 0:00:01]} (44. Rxb5 {only move.} Ne2 45. Ka3) 44... Rf1 {[%emt 0:00:04]} 45. Re7+ {[%emt 0:00:01]} (45. Bg8 $142) 45... Kb6 {[%emt 0:00:01]} 46. Re6+ {[%emt 0:00:01]} Kc5 {[%emt 0:00:01]} 47. g5 {[%emt 0:00:01]} Bd5 {[%emt 0:00:02]} 48. Re5 {[%emt 0:00:01]} Kd4 {[%emt 0:00:02]} 49. Re8 {[%emt 0:00:01]} Ne4 {[%emt 0:00:03]} 50. Rd8 {[%emt 0:00:02]} c3+ {[%emt 0:00:01]} 51. Ka3 {[%emt 0:00:02]} Nc5 {[%emt 0:00:03]} 52. Bg8 {[%emt 0:00:05]} Rf5 $2 {[%emt 0:00:03]} (52... Ra1+ {mates} 53. Kb4 Rb1+ 54. Ka5 Nb7+ 55. Kb6 Nxd8 56. Bh7 Ne6 57. Bf5 Nxg5 58. Kc7 b4 59. Bg6 b3 60. cxb3 Be4 61. Bh5 c2 62. Be8 c1=Q+ 63. Kd8 Rxb3 64. Ba4 Rb8+ 65. Kd7 Rb7+ 66. Kd8 Qc7+ 67. Ke8 Qe7#) 53. g6 $11 {[%emt 0:00:04]} Rg5 {[%emt 0:00:04][%mdl 8192]} (53... Ne4 $11) 54. Bxd5 $2 $18 {[%emt 0:00:01][%mdl 4096] Endgame KRB-KRN} (54. Rxd5+ $18 Rxd5 55. Bxd5) 54... Ke5 {[%emt 0:00:03]} (54... Rxd5 $2 55. Rxd5+ Kxd5 56. g7 $18) 55. g7 {[%emt 0:00:03]} (55. Bf7 $16 {And now Rd5+ would win.} Kf6 56. Rd4) 55... Rxg7 $11 {[%emt 0:00:02]} 56. Bb3 {[%emt 0:00:01]} Rg4 $2 {[%emt 0:00:04][%mdl 8192]} (56... Rd7 $11 57. Rxd7 Nxd7) 57. Rd5+ $18 {[%emt 0:00:01]} Ke4 {[%emt 0:00:02]} 58. Rxc5 {[%emt 0:00:01] KRB-KR} Kd4 {[%emt 0:00:02]} 59. Rxb5 {[%emt 0:00:01]} Rg7 {[%emt 0:00:01]} 60. Rb4+ {[%emt 0:00:02]} Ke3 {[%emt 0:00:02]} 61. Rc4 {[%emt 0:00:01]} Kd2 {[%emt 0:00:01]} 62. Kb4 {[%emt 0:00:01]} Rb7+ {[%emt 0:00:01]} 63. Ka4 {[%emt 0:00:01]} Ra7+ {[%emt 0:00:01]} 64. Kb5 {[%emt 0:00:01]} Rb7+ {[%emt 0:00:00]} 65. Kc5 {[%emt 0:00:03]} Rc7+ {[%emt 0:00:02]} 66. Kd4 $1 {[%emt 0:00:02]} Rd7+ {[%emt 0:00:01]} 67. Ke5 {[%emt 0:00:01] Intending Rd4+ and mate.} Re7+ {[%emt 0:00:02]} 68. Kd6 {[%emt 0:00:01]} Rb7 {[%emt 0:00:01]} 69. Kd5 {[%emt 0:00:02]} Rd7+ {[%emt 0:00:02]} 70. Ke6 {[%emt 0:00:05]} Rb7 {[%emt 0:00:01]} 71. Ba4 {[%emt 0:00:01]} Ra7 {[%emt 0:00:02]} 72. Kd5 {[%emt 0:00:02]} Ra8 {[%emt 0:00:03]} 73. Kd4 {[%emt 0:00:07]} Rd8+ {[%emt 0:00:01]} 74. Kc5 {[%emt 0:00:01] White threatens Rd4+ and mate.} Rc8+ {[%emt 0:00:02] [#]} 75. Kb4 $1 {[%emt 0:00:01]} Rb8+ {[%emt 0:00:02] [#]} 76. Kc5 $2 {[%emt 0:00:01]} (76. Ka3 $1 $18) 76... Rc8+ $1 $11 {[%emt 0:00:01]} 77. Kd4 {[%mdl 32768] White used his chance.  Weighted Error Value: White=0.84/Black=0.33. Sensor Board Error (Ke4/e5)?} 0-1

[Event "German-ch Blitz Women 2022"]
[Site "Magdeburg"]
[Date "2022.08.13"]
[Round "18.6"]
[White "Wulf, Constanze"]
[Black "Zhou, Lepu Coco"]
[Result "0-1"]
[ECO "A06"]
[WhiteElo "1835"]
[BlackElo "1986"]
[Annotator "TA"]
[PlyCount "51"]
[EventDate "2022.08.10"]
[EventType "tourn"]
[EventCountry "GER"]
[SourceTitle "playchess.com"]
[Source "ChessBase"]
[SourceQuality "1"]
[TimeControl "180+2"]

{[%evp 13,51,-9,0,-33,-24,-65,-45,-76,-75,-75,-69,-62,-64,-64,-47,-87,-56,-76,-68,-76,-77,-62,-54,-47,-54,-91,-58,-339,-156,-138,-126,-328,-333,-396,-17,-51,66,85,83,25]} 1. Nf3 d5 2. b3 Nf6 3. Bb2 g6 4. e3 Bg7 5. Be2 O-O 6. O-O c5 7. d3 Nc6 8. Nbd2 {A05: Réti Opening: 1 Nf3 Nf6.} Qc7 {[#]} 9. e4 $146 ({Predecessor:} 9. c4 e6 10. Rc1 b6 11. cxd5 exd5 12. d4 Ne4 13. a3 f5 14. Qc2 Bb7 15. dxc5 bxc5 16. Bxg7 Kxg7 17. Nxe4 fxe4 {1-0 (40) Cruz,J (1342)-Moreno Gil,G Pereira 2022}) 9... e5 (9... Rd8 {feels hotter.} 10. Qb1 dxe4 11. Nxe4 Nd4) 10. exd5 {Black is slightly better.} Nxd5 11. Re1 Re8 12. Bf1 Bg4 13. h3 Bd7 14. Nc4 b5 15. Ne3 Nxe3 (15... Nf4 {is more complex.} 16. Ng5 f5 17. g3 Ne6) 16. Rxe3 Nd4 17. c3 Nf5 {0x0.0002df7f8887dp-1022s more active pieces.} 18. Re1 Bc6 19. Qe2 e4 20. Ng5 {[%mdl 8192]} ({White should try} 20. dxe4 $15 Rxe4 21. Qc2) 20... exd3 (20... e3 $19 21. Qc2 Be5 22. fxe3 Nxe3 $1 {[%mdl 512]} 23. Rxe3 Bh2+ 24. Kh1 Rxe3) 21. Qxd3 $17 h6 22. Ne4 (22. Nf3 $17 {might work better.}) 22... Rad8 $19 23. Qc2 Nd6 $2 ({Black should play} 23... Qf4 $19 24. g3 Bxe4 25. gxf4 Bxc2 26. Rxe8+ Rxe8 27. Bxb5 Rb8) 24. Nxc5 {[#]} Bd5 (24... Bxg2 $1 $15 25. Na6 (25. Rxe8+ Rxe8) 25... Qc8 26. Bxg2 Qxa6) 25. Nd3 $14 Ne4 26. Nb4 {[%mdl 32768] Weighted Error Value: White=0.57/Black=0.52. Loss on time!?} (26. Rac1 $16) 0-1

[Event "German-ch Blitz Women 2022"]
[Site "Magdeburg"]
[Date "2022.08.13"]
[Round "18.7"]
[White "Stangl, Anita"]
[Black "Nikolaeva, Mariya A"]
[Result "1-0"]
[ECO "C52"]
[WhiteElo "2023"]
[BlackElo "1309"]
[Annotator "NA RC"]
[PlyCount "43"]
[EventDate "2022.08.10"]
[EventType "tourn"]
[EventCountry "GER"]
[SourceTitle "playchess.com"]
[Source "ChessBase"]
[SourceQuality "1"]
[TimeControl "180+2"]

1. e4 {[%emt 0:00:00]} e5 {[%emt 0:00:00]} 2. Nf3 {[%emt 0:00:01]} Nc6 {[%emt 0:00:01]} 3. Bc4 {[%emt 0:00:01]} Bc5 {[%emt 0:00:01]} 4. b4 {[%emt 0:00:01]} Bxb4 {[%emt 0:00:01]} 5. c3 {[%emt 0:00:00]} Ba5 {[%emt 0:00:01]} 6. d4 {[%emt 0:00:01]} d6 {[%emt 0:00:01]} 7. Qb3 {[%emt 0:00:03]} Qe7 {[%emt 0:00:22]} 8. d5 {[%emt 0:00:01]} Nb8 {[%emt 0:00:02]} 9. Qb5+ {[%emt 0:00:01]} Bd7 {[%emt 0:00:02]} 10. Qxa5 {[%emt 0:00:01]} Nf6 {[%emt 0:00:01]} 11. Qxc7 {[%emt 0:00:06]} O-O {[%emt 0:00:16]} 12. Qxb7 {[%emt 0:00:05]} Nxe4 {[%emt 0:00:12]} 13. Qxa8 {[%emt 0:00:10]} Na6 {[%emt 0:00:03]} 14. Qxa7 {[%emt 0:00:06]} Nac5 {[%emt 0:00:01]} 15. O-O {[%emt 0:00:11]} Qf6 {[%emt 0:00:02]} 16. Nbd2 {[%emt 0:00:13]} Nxc3 {[%emt 0:00:19]} 17. Bb2 {[%emt 0:00:06]} N3e4 {[%emt 0:00:03]} 18. Nxe4 {[%emt 0:00:12]} Nxe4 {[%emt 0:00:02]} 19. Qxd7 {[%emt 0:00:02]} Nc5 {[%emt 0:00:16]} 20. Qc6 {[%emt 0:00:04]} Qe7 {[%emt 0:00:04]} 21. a4 {[%emt 0:00:10]} f5 {[%emt 0:00:03]} 22. Nxe5 {[%emt 0:00:05]} 1-0

[Event "German-ch Blitz Women 2022"]
[Site "Magdeburg"]
[Date "2022.08.13"]
[Round "18.8"]
[White "Falke, Ornella"]
[Black "Schulze, Lara"]
[Result "1-0"]
[ECO "E20"]
[WhiteElo "1912"]
[BlackElo "2292"]
[Annotator "TA"]
[PlyCount "59"]
[EventDate "2022.08.10"]
[EventType "tourn"]
[EventCountry "GER"]
[SourceTitle "playchess.com"]
[Source "ChessBase"]
[SourceQuality "1"]
[TimeControl "180+2"]

{[%evp 12,59,-36,-56,5,-17,8,16,17,12,8,-89,3,-36,-34,-356,-252,-244,-242,-253,12,22,29,69,320,300,330,301,504,504,695,662,1108,883,1157,1137,1854,1072,1943,1056,1139,798,1929,1842,1813,1760,2745,2571,3293,3152]} 1. d4 {[%emt 0:00:05][%cal Bd2d4,Bd4d5][%mdl 32]} Nf6 {[%emt 0:00:01]} 2. c4 {[%emt 0:00:02]} e6 {[%emt 0:00:01]} 3. Nc3 {[%emt 0:00:15]} Bb4 {[%emt 0:00:01]} 4. f3 {[%emt 0:00:03]} c5 {[%emt 0:00:02]} 5. d5 {[%emt 0:00:14]} d6 {[%emt 0:00:02]} 6. Bg5 {[%emt 0:00:22]} h6 {[%emt 0:00:06]} 7. Bh4 {[%emt 0:00:02]} b5 {[%emt 0:00:17] E31: Nimzo-Indian: Leningrad Variation: 4...h6 5 Bh4 c5 6 d5 d6.} ({Black should play} 7... O-O $15) 8. e4 $11 {[%emt 0:00:09]} exd5 {[%emt 0:00:31]} 9. cxd5 {[%emt 0:00:03]} a6 {[%emt 0:00:05] The position is equal.} 10. a4 {[%emt 0:00:11]} bxa4 {[%emt 0:00:28] [#]} 11. Bc4 $146 {[%emt 0:00:14]} (11. Qxa4+ $11 Nbd7 12. Be2) ({Predecessor:} 11. Qxa4+ Bd7 12. Qc2 O-O 13. Bc4 Bc8 14. Nge2 Nbd7 15. O-O Ne5 16. Bb5 Bb7 17. Ba4 {½-½ (59) Kranzl,A (2245)-Bennborn,J (2221) ICCF email 2000}) 11... Nbd7 {[%emt 0:00:06]} (11... a3 $17 12. Nge2 axb2) 12. Qxa4 {[%emt 0:00:10]} O-O {[%emt 0:00:04]} 13. Qc6 $2 {[%emt 0:00:08][%mdl 8192] [#]} (13. Qa2 $15) 13... Ne5 $1 {[%emt 0:00:16]} 14. Qxa8 {[%emt 0:00:09]} Nxc4 {[%emt 0:00:01]} 15. Nge2 {[%emt 0:00:09]} g5 $2 {[%emt 0:00:46]} (15... Ne3 $19 16. Bg3 (16. Kf2 $2 Nfg4+ 17. fxg4 Nxg4+ 18. Ke1 Qxh4+ 19. g3 Qg5 $19) 16... Nc2+ 17. Kf2 c4 18. Rxa6 (18. Rac1 $2 Qb6+ 19. Kf1 Ne3+ 20. Kg1 Neg4+ 21. Kf1 Ne3+ 22. Kg1 Nd1+ 23. Kf1 Ne3+ $19) 18... Bc5+ 19. Kf1 Ne3+ 20. Ke1 Qe7) 16. Bg3 {[%emt 0:00:22][%cal Bh4g3,Bg3d6,Bd6e7,Be7f6][%mdl 32]} Qb6 {[%emt 0:00:05]} 17. Qc6 {[%emt 0:00:06]} Qxc6 {[%emt 0:00:05][%mdl 8192]} ({Black should try} 17... Bxc3+ $14 18. bxc3 Qb2) 18. dxc6 $18 {[%emt 0:00:01]} Nxb2 {[%emt 0:00:04]} 19. Bxd6 {[%emt 0:00:08]} Rd8 {[%emt 0:00:05]} (19... Re8 {was worth a try.} 20. O-O Re6) 20. Be7 {[%emt 0:00:01][%csl LRd8,LRf6] White is clearly winning.} Nd5 {[%emt 0:00:29]} 21. exd5 {[%emt 0:00:12]} Re8 {[%emt 0:00:01]} 22. Bf6 {[%emt 0:00:04]} Bf5 {[%emt 0:00:05]} 23. O-O {[%emt 0:00:04][%cal Bh1f1,Bf1e1,Be1e8][%mdl 32]} Bd3 {[%emt 0:00:03]} 24. Rfe1 {[%emt 0:00:17] And now d6 would win.} Kh7 {[%emt 0:00:01]} 25. Ra2 {[%emt 0:00:04] Black must now prevent d6.} Nc4 {[%emt 0:00:03]} 26. Kf2 {[%emt 0:00:04]} Kg6 {[%emt 0:00:01] [#]} 27. Nf4+ $1 {[%emt 0:00:05]} gxf4 {[%emt 0:00:03]} 28. Rxe8 {[%emt 0:00:02]} Kxf6 {[%emt 0:00:00]} 29. Ne4+ {[%emt 0:00:01]} Bxe4 {[%emt 0:00:04]} 30. fxe4 {[%emt 0:00:01] Weighted Error Value: White=0.69/Black=1.11} 1-0

[Event "German-ch Blitz Women 2022"]
[Site "Magdeburg"]
[Date "2022.08.13"]
[Round "18.9"]
[White "Kosovska, Olena"]
[Black "Melamed, Tatjana"]
[Result "0-1"]
[ECO "B04"]
[WhiteElo "1831"]
[BlackElo "2380"]
[Annotator "TA"]
[PlyCount "110"]
[EventDate "2022.08.10"]
[EventType "tourn"]
[EventCountry "GER"]
[SourceTitle "playchess.com"]
[Source "ChessBase"]
[SourceQuality "1"]
[TimeControl "180+2"]

{[%evp 9,110,45,65,35,44,43,45,0,0,-39,16,16,12,-23,22,0,6,0,9,-10,-2,-9,-29,-31,-13,-18,-12,-23,-5,-86,-8,-18,0,-85,0,-61,-60,-78,29,17,134,141,124,129,234,170,622,602,547,281,323,334,317,247,241,7,7,-57,-56,-63,16,22,39,12,30,0,100,0,0,-354,-317,-289,-294,-277,-144,-185,-185,-266,-185,-247,-247,-1839,-1845,-12841,-12841,-12841,-12842,-12842,-12840,-12842,-12835,-12836,-12835,-12842,-12843,-12843,-12843,-12844,-12843,-12844,-12844,-12845,-12844]} 1. e4 {[%emt 0:00:01][%cal Be2e4,Be4e5][%mdl 32]} Nf6 {[%emt 0:00:01]} 2. e5 {[%emt 0:00:01]} Nd5 {[%emt 0:00:01]} 3. d4 {[%emt 0:00:02]} d6 {[%emt 0:00:01]} 4. Nf3 {[%emt 0:00:01]} Nc6 {[%emt 0:00:04]} 5. Bb5 {[%emt 0:00:03]} a6 {[%emt 0:00:15]} 6. Ba4 {[%emt 0:00:05] B04: Alekhine's Defence: 4 Nf3.} (6. Bxc6+ $5 bxc6 7. c4 $14) 6... Bg4 {[%emt 0:00:12]} 7. c4 {[%emt 0:00:19]} Nb6 {[%emt 0:00:07]} 8. d5 {[%emt 0:00:12] White is slightly better.} (8. Bxc6+ $5 bxc6 9. h3 $14) 8... Nxa4 {[%emt 0:00:13] [#]} 9. dxc6 $146 {[%emt 0:00:06]} (9. Qxa4 $5 {[%cal Rd5c6]} Bxf3 10. gxf3 $11) ({Predecessor:} 9. Qxa4 Bxf3 10. gxf3 b5 11. cxb5 Nxe5 12. bxa6+ Qd7 13. Qxd7+ Kxd7 14. Ke2 Rxa6 15. Nc3 {½-½ (58) Wilshusen,H (1654)-Lenz,J (1278) LSS email 2016}) 9... Nc5 {[%emt 0:00:11]} (9... b5 $15) 10. cxb7 {[%emt 0:00:06]} Nxb7 {[%emt 0:00:03]} 11. O-O {[%emt 0:00:09]} (11. h3 $5 {[%cal Rh3g4]} Bd7 12. Nc3 $11) 11... e6 {[%emt 0:00:02]} 12. h3 {[%emt 0:00:07]} Bh5 {[%emt 0:00:03]} 13. Bf4 {[%emt 0:00:09]} Be7 {[%emt 0:00:14]} 14. Nbd2 {[%emt 0:00:02]} Nc5 {[%emt 0:00:05]} 15. b4 {[%emt 0:00:04]} Nd3 {[%emt 0:00:06][%csl LRb4,LRf4]} 16. exd6 {[%emt 0:00:18]} cxd6 {[%emt 0:00:06]} 17. Bg3 {[%emt 0:00:12]} O-O {[%emt 0:00:06]} 18. Qb3 {[%emt 0:00:04]} Bg6 {[%emt 0:00:08]} 19. Rfd1 {[%emt 0:00:07]} (19. Ne1 $11 Ne5 20. Rd1) 19... Qb6 {[%emt 0:00:02]} (19... a5 $17 20. b5 Bf6) 20. a3 {[%emt 0:00:04]} Bf6 {[%emt 0:00:09]} 21. Ra2 {[%emt 0:00:13]} (21. Rab1 $11 {keeps the balance.}) 21... e5 {[%emt 0:00:16] 0x0.0020ae33b91cdp-1022s more active pieces.} ({Black should try} 21... a5 $1 $17 {[%cal Ra5a4] White must now prevent ...a4.} 22. c5 dxc5) 22. Nh4 {[%emt 0:00:02]} (22. Ne1 $11 Nxe1 23. Rxe1) 22... Bxh4 $15 {[%emt 0:00:06]} 23. Bxh4 {[%emt 0:00:01]} Nf4 {[%emt 0:00:04]} (23... a5 $17 24. c5 dxc5) 24. Nf3 $11 {[%emt 0:00:09] White wants to play Rad2.} h6 {[%emt 0:00:16] [#]} (24... e4 $11) 25. Rad2 $1 $16 {[%emt 0:00:02]} Qb7 {[%emt 0:00:09]} 26. Rxd6 {[%emt 0:00:05]} e4 {[%emt 0:00:15]} (26... f6 $16) 27. Rd7 {[%emt 0:00:08]} Qc6 {[%emt 0:00:08]} (27... Qc8) 28. Ne5 $18 {[%emt 0:00:03]} Qe6 {[%emt 0:00:04]} 29. Nxg6 {[%emt 0:00:15]} Nxg6 {[%emt 0:00:01]} 30. Bg3 {[%emt 0:00:03]} Rac8 {[%emt 0:00:01]} 31. R7d5 {[%emt 0:00:04]} Rfe8 {[%emt 0:00:06]} 32. c5 $2 {[%emt 0:00:02]} (32. a4 $18) 32... Ne7 $11 {[%emt 0:00:06] [#]} 33. Qc4 {[%emt 0:00:32]} (33. Kh2 $1 $11) 33... Nxd5 $15 {[%emt 0:00:01]} 34. Qxd5 {[%emt 0:00:02]} Rcd8 {[%emt 0:00:11]} (34... e3 $15 35. Qxe6 Rxe6) 35. Qxd8 {[%emt 0:00:04]} Rxd8 {[%emt 0:00:01]} 36. Rxd8+ $11 {[%emt 0:00:01][%mdl 4096] Endgame KQ-KRB} Kh7 {[%emt 0:00:01]} 37. Rd6 {[%emt 0:00:01]} (37. Kh2 $5 {[%cal Rd8d6]}) 37... Qc4 {[%emt 0:00:02]} (37... Qb3 $1 $11 {remains equal.}) 38. c6 {[%emt 0:00:04]} ({White should play} 38. Bf4 $16) 38... f5 {[%emt 0:00:05] ...Qc1+ is the strong threat.} 39. Rd7 $2 {[%emt 0:00:01][%mdl 8192]} (39. Bf4 $11 {and White is okay.} g5 40. Be5 Qc1+ 41. Kh2) 39... Qxc6 {[%emt 0:00:02]} 40. Rc7 {[%emt 0:00:03]} Qd5 {[%emt 0:00:02]} 41. Rc5 {[%emt 0:00:03]} Qd1+ {[%emt 0:00:02]} 42. Kh2 {[%emt 0:00:01]} Qd7 {[%emt 0:00:05]} 43. Rc7 {[%emt 0:00:02]} (43. Bf4 {might work better.}) 43... Qe6 {[%emt 0:00:01]} 44. a4 {[%emt 0:00:04]} (44. Bf4 $142) 44... Qf6 $19 {[%emt 0:00:04] And now ...f4 would win.} 45. Rc5 $2 {[%emt 0:00:02]} (45. Bf4) 45... f4 {[%emt 0:00:01] Black is clearly winning.} 46. b5 {[%emt 0:00:11]} fxg3+ {[%emt 0:00:02]} 47. fxg3 {[%emt 0:00:01]} axb5 {[%emt 0:00:01]} 48. axb5 {[%emt 0:00:02] KQ-KR} Qd4 {[%emt 0:00:00]} 49. Rc6 {[%emt 0:00:01]} e3 {[%emt 0:00:03]} 50. Re6 {[%emt 0:00:01]} Qd3 {[%emt 0:00:05]} 51. b6 {[%emt 0:00:01]} Qb3 {[%emt 0:00:00]} 52. Re5 {[%emt 0:00:03]} Qxb6 {[%emt 0:00:02]} 53. Re4 {[%emt 0:00:02]} Qc5 {[%emt 0:00:01]} 54. Re6 {[%emt 0:00:01]} Qd4 {[%emt 0:00:01]} 55. Re7 {[%emt 0:00:02]} Qd3 {[%emt 0:00:00] Black used his chance.  Weighted Error Value: White=0.79/Black=0.48} 0-1

[Event "German-ch Blitz Women 2022"]
[Site "Magdeburg"]
[Date "2022.08.13"]
[Round "18.10"]
[White "Leveikina, Jevgenija"]
[Black "Staerk, Elisa"]
[Result "1-0"]
[ECO "A49"]
[WhiteElo "2061"]
[BlackElo "1947"]
[Annotator "NA RC"]
[PlyCount "51"]
[EventDate "2022.08.10"]
[EventType "tourn"]
[EventCountry "GER"]
[SourceTitle "playchess.com"]
[Source "ChessBase"]
[SourceQuality "1"]
[TimeControl "180+2"]

1. d4 {[%emt 0:00:00]} Nf6 2. Nf3 g6 {[%emt 0:00:01]} 3. g3 Bg7 4. Bg2 {[%emt 0:00:02]} O-O {[%emt 0:00:01]} 5. O-O d6 6. c3 {[%emt 0:00:02]} Nbd7 {[%emt 0:00:02]} 7. Nbd2 {[%emt 0:00:01]} e5 {[%emt 0:00:01]} 8. dxe5 {[%emt 0:00:01]} dxe5 {[%emt 0:00:01]} 9. e4 c6 10. Qc2 {[%emt 0:00:06]} Qc7 {[%emt 0:00:01]} 11. b3 {[%emt 0:00:04]} Nc5 {[%emt 0:00:04]} 12. Ba3 {[%emt 0:00:10]} Nfd7 {[%emt 0:00:06]} 13. Rad1 {[%emt 0:00:06]} Re8 {[%emt 0:00:01]} 14. Nc4 {[%emt 0:00:03]} Bf8 {[%emt 0:00:13]} 15. h3 {[%emt 0:00:15]} b5 {[%emt 0:00:02]} 16. Ne3 {[%emt 0:00:04]} Bg7 {[%emt 0:00:17]} 17. c4 {[%emt 0:00:13]} Bb7 {[%emt 0:00:19]} 18. cxb5 {[%emt 0:00:04]} Ne6 {[%emt 0:00:27]} 19. Bd6 {[%emt 0:00:08]} Qb6 {[%emt 0:00:12]} 20. bxc6 {[%emt 0:00:05]} Bxc6 {[%emt 0:00:06]} 21. Nc4 {[%emt 0:00:02]} Qb7 {[%emt 0:00:23]} 22. Rfe1 {[%emt 0:00:15]} Nd4 {[%emt 0:00:06]} 23. Nxd4 {[%emt 0:00:06]} exd4 {[%emt 0:00:01]} 24. Na5 {[%emt 0:00:03]} Qb6 {[%emt 0:00:22]} 25. Nxc6 {[%emt 0:00:08]} Rac8 {[%emt 0:00:02]} 26. Ne7+ {[%emt 0:00:12]} 1-0